bitfinex-derivatives/quotes_ETHF0:USTF0_20240901
["timestamp","ask_amount","ask_price","bid_price","bid_amount"]
[1725160307052,4.85546479,2492.2,2492.1,2.9451]
[1725160307250,4.85546479,2492.2,2492.1,2.3677]
[1725160308540,4.85546479,2492.2,2492.1,1.16]
[1725160312649,4.85546479,2492.2,2492.1,1.7336]
[1725160314642,5.25673479,2492.2,2492.1,1.16]
[1725160315250,4.85546479,2492.2,2491.8,0.5695]
[1725160315551,0.40136,2491.6,2491.5,1.7295]
[1725160316357,0.40136,2491.7,2491.5,1.7295]
[1725160316652,0.40135,2491.7,2491.5,1.7295]
[1725160317652,0.40136,2491.6,2491.5,1.7295]
[1725160318049,0.40136,2491.7,2491.5,1.7295]
[1725160318952,4.32647022,2491.6,2491.5,1.7295]
[1725160320948,4.32647022,2491.6,2491.5,2.13088]
[1725160321253,4.32647022,2491.6,2491.5,1.7295]
[1725160322842,4.32647022,2491.6,2491.5,2.13088]
[1725160323349,1.7544,2491.8,2491.7,0.40135]
[1725160323554,1.7544,2491.8,2491.7,1.56135]
[1725160323859,3.60909,2492.1,2491.8,0.40133]
[1725160323860,0.5817,2492.0,2491.8,0.40133]
[1725160324040,0.5817,2492.0,2491.9,1.16]
[1725160324041,0.983,2492.0,2491.9,1.16]
[1725160324241,5.45378788,2492.0,2491.9,1.16]
[1725160324446,9.46658788,2492.0,2491.9,1.16]
[1725160325349,5.05248788,2492.0,2491.9,1.16]
[1725160326058,5.05248788,2492.0,2491.9,1.56132]
[1725160326767,9.06528788,2492.0,2491.8,1.56132]
[1725160327052,5.05248788,2492.0,2491.8,1.56132]
[1725160328856,5.05248788,2492.0,2491.9,0.40132]
[1725160329062,5.05248788,2492.0,2491.9,0.97372]
[1725160329360,9.06528788,2492.0,2491.9,0.97372]
[1725160330853,5.05248788,2492.0,2491.9,0.97372]
[1725160333157,5.05248788,2492.0,2491.9,1.56132]
[1725160333359,3.2078,2492.3,2492.2,0.40127]
[1725160333565,0.5931,2492.5,2492.3,0.40124]
[1725160333862,0.5931,2492.5,2492.4,0.6194]
[1725160334163,5.06470797,2492.5,2492.4,0.6194]
[1725160334364,5.06470797,2492.5,2492.4,1.02063]
[1725160335768,5.06470797,2492.5,2492.4,0.6194]
[1725160335967,5.06470797,2492.5,2492.4,1.02063]
[1725160336168,9.07670797,2492.5,2492.4,1.02063]
[1725160336469,5.06470797,2492.5,2492.4,1.02063]
[1725160336870,5.06470797,2492.5,2492.4,0.6194]
[1725160337367,5.06470797,2492.5,2492.4,1.02063]
[1725160338267,5.06470797,2492.5,2492.4,2.18063]
[1725160339063,4.47160797,2492.5,2492.4,2.18063]
[1725160340966,3.2078,2492.8,2492.6,0.40119]
[1725160341260,5.14423864,2492.7,2492.6,0.40119]
[1725160341867,4.54443864,2492.7,2492.6,0.40119]
[1725160342062,3.2078,2492.8,2492.7,0.40119]
[1725160342760,3.2078,2492.8,2492.7,1.56119]
[1725160343467,3.2078,2492.8,2492.7,5.57319]
[1725160344758,3.2078,2492.8,2492.7,11.57319]
[1725160345573,3.2078,2492.8,2492.7,5.57319]
[1725160345771,1.76526707,2492.8,2492.7,13.74976]
[1725160346958,0.5584,2493.3,2492.7,12.3456]
[1725160347159,0.5584,2493.3,2493.2,1.56111]
[1725160347462,0.5584,2493.3,2493.2,1.16]
[1725160347663,0.5584,2493.3,2493.2,1.56111]
[1725160348969,0.52366449,2493.8,2493.2,1.56111]
[1725160348970,3.2078,2493.9,2493.4,0.40107]
[1725160349269,4.17396419,2493.8,2493.7,1.16]
[1725160349567,5.35386419,2493.8,2493.7,1.16]
[1725160350159,9.36426419,2493.8,2493.6,1.16]
[1725160350371,0.99913,2493.7,2493.6,1.16]
[1725160350776,5.59181656,2493.7,2493.6,1.16]
[1725160350979,5.19078656,2493.7,2493.6,1.16]
[1725160352064,5.59181656,2493.7,2493.6,1.16]
[1725160352268,0.40106,2493.5,2493.4,1.16]
[1725160352669,0.40105,2493.6,2493.4,1.16]
[1725160353372,4.27156687,2493.5,2493.4,1.16]
[1725160353874,0.40106,2493.5,2493.4,1.16]
[1725160354267,4.7053624,2493.5,2493.4,1.16]
[1725160354582,3.2078,2493.9,2493.4,5.1704]
[1725160354784,0.6183,2493.6,2493.5,0.5819]
[1725160354975,5.24110345,2493.7,2493.5,1.58916]
[1725160355167,0.6109,2493.7,2493.5,1.58916]
[1725160355677,0.6109,2493.7,2493.5,1.58915]
[1725160356382,0.6109,2493.7,2493.6,1.16]
[1725160356574,0.6183,2493.8,2493.6,1.16]
[1725160356969,0.6183,2493.8,2493.6,1.56104]
[1725160357579,0.6183,2493.8,2493.6,1.56103]
[1725160358175,3.2078,2493.9,2493.7,0.40103]
[1725160358369,0.6068,2493.9,2493.8,1.16]
[1725160358879,1.2248,2494.0,2493.8,1.7221]
[1725160359068,0.6068,2494.2,2493.9,0.6005]
[1725160359377,1.8417,2494.2,2494.1,1.16]
[1725160359582,0.6068,2494.2,2494.1,1.16]
[1725160359768,1.8417,2494.2,2494.1,1.16]
[1725160360375,2.24265,2494.2,2494.1,1.16]
[1725160360779,1.8417,2494.2,2494.1,1.16]
[1725160361175,2.24265,2494.2,2494.1,1.16]
[1725160362578,10.68043911,2494.2,2494.1,1.16]
[1725160363380,10.68043911,2494.2,2493.6,0.5842]
[1725160363587,0.401,2493.9,2493.6,1.1682]
[1725160363782,1.7893,2493.8,2493.6,1.1682]
[1725160363979,1.7893,2493.8,2493.7,1.16]
[1725160364180,0.40099,2494.0,2493.7,1.16]
[1725160364486,2.19027,2494.1,2493.9,1.16]
[1725160364781,4.38450826,2494.0,2493.9,1.16]
[1725160365081,0.40092,2494.4,2494.0,0.40097]
[1725160365288,0.40092,2494.4,2494.3,1.16]
[1725160365786,0.66652801,2494.4,2494.3,1.16]
[1725160366787,0.40093,2494.3,2494.2,1.16]
[1725160367282,4.6564471,2494.3,2494.2,1.16]
[1725160369390,4.2555171,2494.3,2494.2,1.16]
[1725160369776,4.72089419,2494.4,2494.2,1.16]
[1725160369985,0.40092,2494.4,2494.2,1.16]
[1725160370281,4.31997419,2494.3,2494.2,1.16]
[1725160371090,4.41251439,2494.4,2494.2,1.16]
[1725160371286,2.2208,2494.5,2494.3,1.16]
[1725160371287,1.8199,2494.5,2494.3,1.16]
[1725160371488,2.22081,2494.5,2494.3,1.16]
[1725160371691,4.26940038,2494.4,2494.3,1.16]
[1725160373494,1.8199,2494.5,2494.3,1.7642]
[1725160374083,0.6085,2494.5,2494.3,1.7642]
[1725160374294,1.1783,2494.5,2494.3,1.7642]
[1725160374791,0.40086,2494.8,2494.3,1.7642]
[1725160374996,1.1607,2494.6,2494.3,1.7642]
[1725160375188,5.48972127,2494.6,2494.3,1.7642]
[1725160375590,1.1607,2494.6,2494.5,1.16]
[1725160375788,0.5698,2494.6,2494.5,1.16]
[1725160376094,4.17848,2494.6,2494.5,1.16]
[1725160376492,0.4009,2494.5,2494.3,1.16]
[1725160376697,0.9861,2494.5,2494.3,1.16]
[1725160377801,0.6106,2494.4,2494.3,1.16]
[1725160378093,3.2078,2494.9,2494.4,4.40971]
[1725160378287,3.2078,2494.9,2494.3,4.3678]
[1725160378288,3.2078,2494.9,2494.8,1.16]
[1725160378798,3.2078,2494.9,2494.8,5.56885]
[1725160379095,3.2078,2494.9,2494.8,5.168]
[1725160379396,3.2078,2494.9,2494.8,5.56885]
[1725160379590,3.2078,2494.9,2494.8,5.168]
[1725160379789,3.2078,2494.9,2494.8,5.56885]
[1725160380202,3.2078,2494.9,2494.8,5.168]
[1725160380397,4.78757,2495.3,2494.8,5.56885]
[1725160380695,4.78757,2495.3,2494.6,0.5622]
[1725160380696,3.2078,2494.9,2494.6,0.5622]
[1725160380897,3.2078,2494.9,2494.8,1.16]
[1725160381088,4.88939446,2495.2,2494.8,1.16]
[1725160381089,0.4008,2495.1,2494.8,1.16]
[1725160381300,0.40082,2495.0,2494.6,1.1474]
[1725160381488,4.72450446,2495.1,2494.7,0.19587748]
[1725160381689,4.32369446,2495.1,2495.0,1.16]
[1725160382189,4.32369446,2495.1,2495.0,2.77]
[1725160382390,0.4008,2495.1,2494.8,0.20319757]
[1725160382601,0.4008,2495.1,2495.0,2.77]
[1725160384695,3.6086,2495.1,2495.0,2.77]
[1725160384996,12.01514185,2495.1,2495.0,2.77]
[1725160385198,0.40084,2494.9,2494.8,2.77]
[1725160385598,9.0168806,2494.9,2494.8,2.77]
[1725160386304,8.6160406,2494.9,2494.8,2.77]
[1725160386801,8.6160406,2494.9,2494.4,3.2078]
[1725160386802,8.6160406,2494.9,2494.4,5.9778]
[1725160387003,8.6160406,2494.9,2494.4,2.77]
[1725160387004,0.4009,2494.5,2494.4,2.77]
[1725160387394,3.7967,2494.8,2494.4,2.77]
[1725160387591,0.96238,2494.7,2494.4,2.77]
[1725160387794,4.20978261,2494.5,2494.4,2.77]
[1725160388002,5.17216261,2494.7,2494.4,2.77]
[1725160388309,0.96238,2494.7,2494.4,2.77]
[1725160388498,4.20978261,2494.6,2494.4,2.77]
[1725160388690,4.61067261,2494.6,2494.4,2.77]
[1725160389800,4.20978261,2494.6,2494.4,2.77]
[1725160390405,4.20978261,2494.6,2494.4,3.3476]
[1725160393902,4.20978261,2494.6,2494.4,2.77]
[1725160394105,4.61066261,2494.6,2494.4,2.77]
[1725160394306,0.5694,2494.5,2494.4,2.77]
[1725160394912,4.20978261,2494.6,2494.4,2.77]
[1725160395301,3.2078,2494.5,2494.0,3.21381564]
[1725160395504,3.60876,2494.1,2494.0,0.00601564]
[1725160396002,7.61836,2494.1,2494.0,0.00601564]
[1725160396208,12.14254898,2494.1,2494.0,0.00601564]
[1725160396414,18.14254898,2494.1,2494.0,0.00601564]
[1725160399609,12.14254898,2494.1,2494.0,0.00601564]
[1725160399814,18.72224898,2494.1,2494.0,0.00601564]
[1725160402012,12.72224898,2494.1,2494.0,0.00601564]
[1725160402716,18.72224898,2494.1,2494.0,0.00601564]
[1725160405305,12.72224898,2494.1,2494.0,0.00601564]
[1725160405505,18.72224898,2494.1,2494.0,0.00601564]
[1725160406022,15.51444898,2494.1,2494.0,0.00601564]
[1725160406219,18.72224898,2494.1,2494.0,0.00601564]
[1725160408213,0.40106,2493.5,2493.4,1.2084]
[1725160408415,3.60886,2493.5,2493.4,1.2084]
[1725160408712,8.05979182,2493.5,2493.4,0.6169]
[1725160409117,8.05980182,2493.5,2493.2,0.00601564]
[1725160411118,4.85200182,2493.5,2493.2,0.00601564]
[1725160411908,4.45093182,2493.5,2493.2,0.00601564]
[1725160412808,4.26879441,2493.6,2493.2,2.77601564]
[1725160413013,0.00597455,2493.7,2493.3,0.6099]
[1725160413214,0.00597455,2493.7,2493.5,0.40104]
[1725160413408,0.00597455,2493.7,2493.6,4.37674]
[1725160413614,0.00597455,2493.7,2493.6,8.38714]
[1725160413815,3.2078,2494.1,2493.9,0.40099]
[1725160414014,3.2078,2494.1,2494.0,1.2225]
[1725160414215,4.47387249,2494.0,2493.6,0.5931]
[1725160414427,4.47387249,2494.0,2493.8,0.401]
[1725160414621,3.2078,2494.1,2493.8,0.401]
[1725160415118,4.26797074,2493.9,2493.8,0.401]
[1725160415319,4.26797074,2494.0,2493.8,0.401]
[1725160415520,3.2078,2494.1,2493.7,1.62352]
[1725160416215,4.41105236,2494.0,2493.7,1.2225]
[1725160417229,4.81203236,2494.0,2493.7,0.6126]
[1725160417529,0.5618,2493.9,2493.7,0.6126]
[1725160417825,4.40153234,2493.8,2493.7,0.6126]
[1725160419729,4.60957958,2494.0,2493.7,0.6126]
[1725160420126,0.40097,2494.1,2493.7,0.6126]
[1725160420323,4.60957958,2494.0,2493.7,0.6126]
[1725160422133,4.60957958,2494.0,2493.9,3.17099]
[1725160424535,3.2078,2494.4,2494.0,0.40096]
[1725160424722,3.2078,2494.4,2494.1,1.1449]
[1725160424921,4.39063558,2494.3,2494.1,1.7153]
[1725160426623,4.39063558,2494.3,2494.2,0.40095]
[1725160427223,0.595,2494.5,2494.2,4.41055]
[1725160427425,0.595,2494.5,2494.2,0.40095]
[1725160427738,4.58863828,2494.4,2494.2,0.40095]
[1725160428131,4.58863828,2494.4,2494.3,0.40093]
[1725160430430,4.58863828,2494.4,2494.3,7.17973]
[1725160430637,0.5576,2494.8,2494.3,9.9866]
[1725160430839,0.5576,2494.8,2494.5,2.77]
[1725160431033,5.00410945,2494.8,2494.6,1.57338]
[1725160431334,5.00410945,2494.8,2494.6,2.14468]
[1725160431543,5.00410945,2494.8,2494.6,1.7438]
[1725160431738,5.00410945,2494.8,2494.6,2.14468]
[1725160432040,4.44650945,2494.8,2494.6,2.14468]
[1725160434439,4.44650945,2494.8,2494.6,1.7438]
[1725160434637,4.44650945,2494.8,2494.6,2.14468]
[1725160436544,0.40079,2495.2,2494.7,0.40086]
[1725160436843,1.7711,2495.3,2495.0,2.77]
[1725160437032,4.7376766,2495.1,2494.6,4.3803]
[1725160437233,0.40081,2495.1,2494.6,3.7818]
[1725160437548,4.3368666,2495.0,2494.6,4.18267]
[1725160437739,1.125,2494.9,2494.6,4.18267]
[1725160437935,1.6967,2494.9,2494.6,4.18267]
[1725160438138,4.24702683,2494.8,2494.6,4.18267]
[1725160440341,4.24702683,2494.8,2494.6,4.38251602]
[1725160440848,4.24702683,2494.8,2494.6,3.7818]
[1725160441148,4.24702683,2494.8,2494.6,4.18268]
[1725160441449,4.24702683,2494.8,2494.6,3.7818]
[1725160441646,4.24702683,2494.8,2494.6,3.2078]
[1725160442550,4.24702683,2494.8,2494.5,2.77601564]
[1725160443856,0.40086,2494.7,2494.5,0.00601564]
[1725160444150,0.40087,2494.7,2494.5,0.00601564]
[1725160444348,4.50326996,2494.6,2494.5,0.00601564]
[1725160444751,4.90413996,2494.7,2494.5,0.00601564]
[1725160444944,3.60866,2494.8,2494.5,0.00601564]
[1725160445144,0.40086,2494.8,2494.5,0.00601564]
[1725160445348,4.3773996,2494.6,2494.5,0.00601564]
[1725160445543,4.3773996,2494.7,2494.5,0.00601564]
[1725160445744,4.33765213,2494.8,2494.5,0.00601564]
[1725160446140,2.09753,2494.9,2494.5,0.00601564]
[1725160446340,4.29562061,2494.8,2494.5,0.00601564]
[1725160447052,4.69647061,2494.8,2494.5,0.00601564]
[1725160447250,4.29562061,2494.8,2494.5,0.00601564]
[1725160447646,4.69648061,2494.8,2494.5,0.00601564]
[1725160447842,7.90428061,2494.8,2494.5,0.00601564]
[1725160448046,0.40087,2494.7,2494.5,0.00601564]
[1725160448441,4.5567673,2494.6,2494.5,0.40691564]
[1725160448647,4.5567673,2494.6,2494.5,0.00601564]
[1725160448849,1.6967,2494.9,2494.5,0.00601564]
[1725160448850,4.38552772,2494.7,2494.5,0.00601564]
[1725160449142,4.38552772,2494.8,2494.5,0.00601564]
[1725160449351,1.6967,2494.9,2494.5,0.00601564]
[1725160449556,4.38552772,2494.8,2494.5,0.00601564]
[1725160450544,4.38552772,2494.8,2494.5,0.40690564]
[1725160451852,4.38552772,2494.8,2494.7,0.40086]
[1725160452159,4.38552772,2494.8,2494.6,0.40087]
[1725160452855,4.38552772,2494.8,2494.7,0.40086]
[1725160455357,4.38552772,2494.8,2494.7,0.98506]
[1725160455860,4.38552772,2494.8,2494.7,2.13506]
[1725160457259,3.2078,2495.4,2494.7,7.7342]
[1725160457457,1.7421,2495.7,2495.3,4.75856]
[1725160457660,1.7421,2495.7,2495.4,0.5635]
[1725160457865,1.15,2495.5,2494.9,0.40082]
[1725160458057,4.60855653,2495.2,2494.9,0.5635]
[1725160458258,0.5805,2495.1,2495.0,3.17082]
[1725160458461,1.1713,2495.5,2495.0,3.17081]
[1725160458669,4.60855653,2495.3,2495.0,3.17081]
[1725160458969,1.1713,2495.5,2495.0,3.17081]
[1725160459166,0.5431,2495.2,2495.1,0.4008]
[1725160459360,0.5431,2495.2,2495.0,2.77]
[1725160460258,0.5431,2495.2,2495.1,0.5434]
[1725160460569,0.5431,2495.2,2495.0,3.17081]
[1725160460766,0.5651,2495.1,2495.0,3.17081]
[1725160461570,0.5651,2495.1,2495.0,2.77]
[1725160461764,5.37844172,2495.1,2495.0,2.77]
[1725160461962,5.37844172,2495.1,2495.0,3.17082]
[1725160461963,4.26664172,2495.1,2495.0,3.17082]
[1725160462565,4.26664172,2495.1,2495.0,2.77]
[1725160462760,4.26664172,2495.1,2494.8,6.5703]
[1725160462966,4.83174172,2495.1,2494.9,0.5477]
[1725160463164,4.83174172,2495.1,2494.9,0.94852]
[1725160463678,4.83174172,2495.1,2494.9,0.5477]
[1725160463974,4.26664172,2495.1,2495.0,3.17082]
[1725160464358,4.26664172,2495.1,2495.0,7.17882]
[1725160464562,0.5384,2495.5,2495.1,0.4008]
[1725160464563,0.5916,2495.4,2495.1,0.4008]
[1725160464768,0.5658,2495.3,2495.1,0.4008]
[1725160465067,0.5658,2495.3,2495.2,0.5498]
[1725160465465,0.5658,2495.3,2495.1,0.40079]
[1725160465665,0.5658,2495.3,2495.1,0.95059]
[1725160465666,5.15579693,2495.3,2495.1,0.95059]
[1725160465865,5.15579693,2495.3,2495.1,0.40079]
[1725160466071,4.58999693,2495.3,2495.1,0.40079]
[1725160466263,4.58999693,2495.3,2495.2,0.5498]
[1725160466465,4.58999693,2495.3,2495.2,0.95058]
[1725160467266,4.58999693,2495.3,2495.2,0.5498]
[1725160467973,4.58999693,2495.3,2495.1,0.4008]
[1725160468770,4.58999693,2495.3,2495.0,2.77]
[1725160468975,4.58999693,2495.3,2495.2,3.17078]
[1725160469271,4.58999693,2495.3,2495.2,2.77]
[1725160469479,4.58999693,2495.3,2495.0,3.17081]
[1725160470373,4.58999693,2495.3,2495.1,0.4008]
[1725160470577,4.58999693,2495.3,2495.0,3.17081]
[1725160470874,4.58999693,2495.3,2495.0,2.77]
[1725160471481,4.99076693,2495.3,2495.0,2.77]
[1725160471774,4.58999693,2495.3,2495.0,2.77]
[1725160473180,4.58999693,2495.3,2495.1,0.40079]
[1725160473769,4.58999693,2495.3,2495.2,0.5543]
[1725160474474,4.58999693,2495.3,2495.1,0.40079]
[1725160474672,4.58999693,2495.3,2495.0,3.17081]
[1725160475072,4.58999693,2495.3,2495.0,2.77]
[1725160475474,4.58999693,2495.3,2494.9,0.98173]
[1725160475684,4.58999693,2495.3,2495.0,0.40081]
[1725160476178,4.58999693,2495.3,2495.1,0.4008]
[1725160477383,4.58999693,2495.3,2495.2,0.5933]
[1725160477774,4.58999693,2495.3,2494.8,6.97113]
[1725160477977,4.58999693,2495.3,2494.9,0.5933]
[1725160478574,4.58999693,2495.3,2494.9,0.99412]
[1725160478978,5.16467,2496.0,2495.2,2.77]
[1725160478979,7.3708,2496.0,2495.2,2.77]
[1725160479183,0.5935,2495.6,2495.3,1.1514]
[1725160479478,4.90495391,2495.6,2495.3,2.10856]
[1725160479677,0.5935,2495.6,2495.3,1.7078]
[1725160479890,4.57561067,2495.5,2495.3,1.7078]
[1725160480078,4.57561067,2495.5,2495.3,0.5933]
[1725160480388,4.57561067,2495.5,2495.3,2.14407]
[1725160481475,4.57561067,2495.5,2495.3,1.7433]
[1725160481980,4.57561067,2495.5,2495.3,2.14407]
[1725160482176,5.15761067,2495.5,2495.3,2.14407]
[1725160482482,5.15761067,2495.5,2495.4,1.15]
[1725160484176,5.15761067,2495.5,2495.4,1.6923]
[1725160485190,3.2078,2496.0,2495.9,0.40067]
[1725160485393,3.2078,2496.0,2495.5,4.148]
[1725160485686,1.652,2495.9,2495.7,1.15]
[1725160485885,6.26880647,2495.9,2495.7,1.15]
[1725160486289,6.26880647,2495.9,2495.5,4.54873]
[1725160486290,6.26880647,2495.9,2495.5,5.69873]
[1725160486986,5.72140647,2495.9,2495.7,1.15]
[1725160487186,6.26880647,2495.9,2495.7,1.55069]
[1725160487391,6.26880647,2495.9,2495.7,1.15]
[1725160487608,6.26880647,2495.9,2495.5,5.298]
[1725160488298,6.26880647,2495.9,2495.7,1.15]
[1725160489297,6.26880647,2495.9,2495.7,1.5507]
[1725160489593,6.26880647,2495.9,2495.7,1.15]
[1725160491094,6.26880647,2495.9,2495.5,1.55074]
[1725160491502,4.61680647,2495.9,2495.7,1.15]
[1725160491992,0.582,2495.8,2495.7,1.7221]
[1725160492297,1.1207,2495.8,2495.7,1.7221]
[1725160493592,7.17102268,2495.8,2495.2,0.40077]
[1725160493785,10.77752268,2495.8,2495.3,1.15]
[1725160494086,6.77032268,2495.8,2495.4,0.40075]
[1725160494293,5.62032268,2495.8,2495.4,2.11155]
[1725160494491,5.62032268,2495.8,2495.5,0.40074]
[1725160494703,5.62032268,2495.8,2495.4,2.11154]
[1725160494886,5.62032268,2495.8,2495.4,2.11155]
[1725160496304,5.62032268,2495.8,2495.4,1.7108]
[1725160496597,5.62032268,2495.8,2495.5,0.40073]
[1725160496899,5.62032268,2495.8,2495.5,1.51963]
[1725160497701,5.62032268,2495.8,2495.5,1.1189]
[1725160498094,5.62032268,2495.8,2495.4,1.7108]
[1725160498294,5.62032268,2495.8,2495.4,0.5608]
[1725160499001,6.02101268,2495.8,2495.4,0.5608]
[1725160499295,6.02101268,2495.8,2495.3,1.15]
[1725160499501,0.40071,2495.7,2495.3,1.15]
[1725160499701,0.547,2495.6,2495.3,1.15]
[1725160499899,5.14684513,2495.6,2495.3,1.15]
[1725160500100,0.5794,2495.5,2495.3,1.15]
[1725160500400,0.5454,2495.4,2495.3,1.15]
[1725160502295,0.5454,2495.4,2495.2,0.5721]
[1725160502296,0.40079,2495.2,2494.7,3.2078]
[1725160502499,1.1518,2495.1,2494.8,1.699]
[1725160502802,5.34276978,2495.1,2494.8,1.699]
[1725160503005,0.5513,2495.0,2494.8,1.699]
[1725160503298,0.5513,2495.0,2494.8,0.549]
[1725160503299,4.48523978,2494.9,2494.8,0.549]
[1725160503900,4.48523978,2494.9,2494.7,1.7045]
[1725160504095,4.48523978,2494.9,2494.7,1.15]
[1725160504096,0.585,2494.8,2494.7,1.15]
[1725160505808,4.48523978,2494.9,2494.7,1.15]
[1725160506013,1.1753,2495.5,2494.8,5.7539]
[1725160506301,1.1753,2495.5,2495.2,1.15]
[1725160506508,1.1753,2495.5,2495.1,0.40079]
[1725160506509,4.20021834,2495.4,2495.1,1.15]
[1725160506801,0.40079,2495.2,2494.9,2.2948]
[1725160506996,0.40079,2495.2,2494.6,4.65593702]
[1725160506997,1.167,2495.1,2494.7,1.15]
[1725160507197,0.6002,2495.0,2494.7,1.15]
[1725160507598,4.23479443,2494.9,2494.7,1.15]
[1725160508104,4.23479443,2494.9,2494.6,1.15]
[1725160508405,4.23479443,2494.9,2494.5,0.00601564]
[1725160508406,4.63563443,2494.9,2494.5,0.00601564]
[1725160508600,0.5508,2494.8,2494.5,0.00601564]
[1725160508995,4.59335081,2494.7,2494.5,0.00601564]
[1725160509196,4.59335081,2494.7,2494.5,0.40690564]
[1725160509393,4.59335081,2494.7,2494.5,0.00601564]
[1725160509796,4.59335081,2494.7,2494.5,0.40691564]
[1725160509998,0.5508,2494.8,2494.5,4.41571564]
[1725160510203,0.5508,2494.8,2494.5,0.40691564]
[1725160510397,0.5508,2494.8,2494.5,1.00721564]
[1725160510799,0.5508,2494.8,2494.6,3.17088]
[1725160511002,0.5919,2495.1,2494.7,0.40086]
[1725160511208,4.50101207,2494.7,2494.5,0.00601564]
[1725160511408,0.5753,2494.6,2494.5,0.00601564]
[1725160511804,5.07631207,2494.6,2494.5,0.00601564]
[1725160514014,3.2078,2495.8,2495.3,0.40076]
[1725160514204,3.2078,2495.8,2495.2,0.40077]
[1725160514205,0.5817,2495.4,2495.2,0.40077]
[1725160514511,4.5116205,2495.3,2495.1,3.17079]
[1725160514702,5.05005962,2495.4,2495.1,3.17079]
[1725160514703,5.05005962,2495.4,2495.2,0.40078]
[1725160514905,0.5817,2495.4,2495.2,0.40078]
[1725160515100,4.34737364,2495.3,2495.2,0.40078]
[1725160515810,4.34737364,2495.3,2495.2,4.40878]
[1725160516011,1.1096,2495.7,2495.2,4.008]
[1725160516214,1.1096,2495.7,2495.4,3.17074]
[1725160516414,4.47836526,2495.6,2495.4,3.17074]
[1725160517514,4.47836526,2495.6,2495.5,0.40074]
[1725160518416,4.47836526,2495.6,2495.4,3.17075]
[1725160518618,4.47836526,2495.6,2495.5,0.40074]
[1725160530922,1.1096,2495.7,2495.6,0.40072]
[1725160532022,3.60842,2496.3,2495.6,0.40072]
[1725160532224,3.2078,2497.1,2496.2,5.9778]
[1725160532433,0.5625,2496.5,2496.4,0.00601564]
[1725160532725,4.76733468,2496.5,2496.4,0.00601564]
[1725160533020,4.5681,2496.5,2496.4,0.00601564]
[1725160533214,18.03765879,2496.5,2496.4,0.00601564]
[1725160535209,18.03765879,2496.5,2495.8,6.37848]
[1725160535210,18.43824879,2496.5,2495.8,3.2078]
[1725160535422,3.2078,2496.2,2495.6,2.77]
[1725160535624,1.1584,2496.1,2495.6,2.77]
[1725160535928,5.51631372,2496.1,2495.6,2.77]
[1725160536121,5.52232936,2496.1,2495.6,2.77601564]
[1725160536322,5.52232936,2496.1,2495.6,3.17672564]
[1725160537223,5.52232936,2496.1,2495.9,2.77]
[1725160537531,5.52232936,2496.1,2495.8,0.40069]
[1725160537916,5.52232936,2496.1,2495.7,2.77]
[1725160538117,5.52232936,2496.1,2495.9,0.40067]
[1725160538313,0.5808,2496.0,2495.8,0.97448]
[1725160538822,4.43255178,2495.9,2495.8,0.97448]
[1725160539222,0.5808,2496.0,2495.7,2.77]
[1725160539529,4.4178215,2495.9,2495.7,3.1707]
[1725160539727,4.4178215,2495.9,2495.8,0.40069]
[1725160541929,4.4178215,2495.9,2495.7,2.77]
[1725160541930,0.5808,2496.0,2495.9,0.40067]
[1725160543535,0.5808,2496.0,2495.8,0.40069]
[1725160543731,5.11240131,2496.0,2495.7,3.1707]
[1725160544331,5.11240131,2496.0,2495.9,1.15]
[1725160545526,5.11240131,2496.0,2495.6,0.00601564]
[1725160545527,9.11880131,2496.0,2495.6,0.00601564]
[1725160545723,5.51307131,2496.0,2495.6,0.00601564]
[1725160545920,5.11240131,2496.0,2495.6,0.00601564]
[1725160546122,5.51306131,2496.0,2495.6,0.00601564]
[1725160547329,0.40068,2495.9,2495.6,0.00601564]
[1725160547730,4.49106494,2495.8,2495.6,0.00601564]
[1725160547945,1.1739,2495.7,2495.6,0.00601564]
[1725160548439,5.77894828,2495.7,2495.6,0.00601564]
[1725160550539,5.37824828,2495.7,2495.6,0.00601564]
[1725160551135,5.77894828,2495.7,2495.6,0.00601564]
[1725160551440,5.37824828,2495.7,2495.6,0.00601564]
[1725160551835,5.93374828,2495.7,2495.6,0.00601564]
[1725160554441,6.33444828,2495.7,2495.6,0.00601564]
[1725160555544,9.94094828,2495.7,2495.6,0.00601564]
[1725160555843,16.34164828,2495.7,2495.6,0.00601564]
[1725160556035,10.34164828,2495.7,2495.6,0.00601564]
[1725160556544,16.34164828,2495.7,2495.6,0.00601564]
[1725160557342,15.94094828,2495.7,2495.6,0.00601564]
[1725160557541,9.94094828,2495.7,2495.6,0.00601564]
[1725160557745,16.34164828,2495.7,2495.6,0.00601564]
[1725160558145,10.34164828,2495.7,2495.6,0.00601564]
[1725160559042,9.94094828,2495.7,2495.6,0.00601564]
[1725160560449,5.93374828,2495.7,2495.6,0.00601564]
[1725160565236,4.20434828,2495.7,2495.6,6.78321564]
[1725160565441,0.00601564,2496.1,2496.0,0.40066]
[1725160565654,0.00601564,2496.1,2495.8,0.40068]
[1725160566138,4.20679643,2496.0,2495.6,0.00601564]
[1725160566339,0.5095,2495.9,2495.6,0.00601564]
[1725160566548,0.5404,2495.8,2495.6,0.00601564]
[1725160566746,4.28735761,2495.8,2495.6,0.53841564]
[1725160566938,0.00601564,2496.1,2495.8,0.40068]
[1725160567435,4.52095143,2496.0,2495.8,0.40068]
[1725160567842,4.52095143,2496.0,2495.6,0.53841564]
[1725160567843,0.5119,2495.9,2495.6,0.53841564]
[1725160568046,0.5119,2495.9,2495.6,0.93912564]
[1725160568533,4.53385801,2495.8,2495.6,0.93912564]
[1725160568847,4.53385801,2495.8,2495.6,0.40673564]
[1725160569044,5.60685801,2495.8,2495.6,0.40673564]
[1725160571135,4.53385801,2495.8,2495.7,1.5507]
[1725160573345,4.53385801,2495.8,2495.6,0.00601564]
[1725160573551,1.0873,2495.7,2495.6,0.00601564]
[1725160575763,5.33570227,2495.7,2495.6,0.00601564]